[Event "25th Abu Dhabi Open 2018"]
[Site "Abu Dhabi"]
[Date "2018.08.08"]
[Round "2"]
[White "Hallaeva, Bahar"]
[Black "Kibrom, Weldegebriel Beraki"]
[Result "1-0"]
[ECO "C54"]
[WhiteElo "2098"]
[BlackElo "1745"]
[Annotator "NA"]
[PlyCount "26"]
[EventDate "2018.08.05"]
[EventType "swiss"]
[EventCountry "UAE"]
[SourceTitle "playchess.com"]
[Source "ChessBase"]
[SourceQuality "1"]
[TimeControl "5400+30"]

1. e4 e5 2. Nf3 Nc6 3. d4 exd4 4. Bc4 Bc5 5. c3 Nf6 6. cxd4 {[%emt 0:12:00]} Bb4+ {[%emt 0:12:30]} 7. Nc3 {[%emt 0:00:33]} Nxe4 {[%emt 0:00:23]} 8. O-O Bxc3 9. bxc3 d5 10. Bd3 O-O 11. Qc2 f5 12. Re1 h6 13. Rb1 Kh8 1-0

[Event "25th Abu Dhabi Open 2018"]
[Site "Abu Dhabi"]
[Date "2018.08.08"]
[Round "2"]
[White "Pabalan, Rocky"]
[Black "Sahithi, Varshini M"]
[Result "0-1"]
[ECO "B20"]
[WhiteElo "2073"]
[BlackElo "1728"]
[Annotator "NA"]
[PlyCount "84"]
[EventDate "2018.08.05"]
[EventType "swiss"]
[EventCountry "UAE"]
[SourceTitle "playchess.com"]
[Source "ChessBase"]
[SourceQuality "1"]
[TimeControl "5400+30"]

1. e4 {[%emt 0:01:18]} c5 {[%emt 0:00:00]} 2. Ne2 {[%emt 0:00:35]} Nc6 {[%emt 0:00:00]} 3. g3 {[%emt 0:00:42]} g6 {[%emt 0:03:45]} 4. Bg2 {[%emt 0:01:04]} Bg7 5. c3 e5 {[%emt 0:02:23]} 6. O-O {[%emt 0:02:03]} Nge7 {[%emt 0:00:34]} 7. d3 {[%emt 0:02:07]} O-O {[%emt 0:02:35]} 8. Be3 {[%emt 0:00:19]} d6 {[%emt 0:05:27]} 9. d4 {[%emt 0:01:13]} exd4 {[%emt 0:04:50]} 10. cxd4 {[%emt 0:00:26]} Qb6 {[%emt 0:12:44]} 11. Nbc3 {[%emt 0:01:02]} cxd4 {[%emt 0:07:49]} 12. Na4 {[%emt 0:00:30]} Qa5 {[%emt 0:01:27]} 13. Nxd4 {[%emt 0:00:49]} Ne5 {[%emt 0:07:03]} 14. Bd2 {[%emt 0:10:47]} Qa6 {[%emt 0:01:06]} 15. Bg5 {[%emt 0:05:29]} Re8 {[%emt 0:05:14]} 16. Nc3 {[%emt 0:09:35]} Bg4 {[%emt 0:09:04]} 17. f3 {[%emt 0:05:55]} Nd3 {[%emt 0:02:27]} 18. Be3 {[%emt 0:04:09]} Nxb2 {[%emt 0:05:47]} 19. Qc1 {[%emt 0:10:09]} Nd3 {[%emt 0:01:46]} 20. Qd2 {[%emt 0:00:26]} Bd7 {[%emt 0:01:31]} 21. Rfb1 {[%emt 0:00:30]} Ne5 {[%emt 0:04:12]} 22. Bf1 {[%emt 0:01:46]} Qa5 {[%emt 0:01:03]} 23. Kg2 {[%emt 0:14:00]} Rac8 {[%emt 0:02:16]} 24. Rb3 {[%emt 0:01:26]} b6 {[%emt 0:03:41]} 25. Rd1 {[%emt 0:04:15]} Nxf3 {[%emt 0:01:58]} 26. Kxf3 {[%emt 0:03:03]} Bg4+ {[%emt 0:00:15]} 27. Kf2 {[%emt 0:07:48]} Bxd1 {[%emt 0:00:10]} 28. Qxd1 {[%emt 0:04:33]} Rxc3 {[%emt 0:00:50]} 29. Rxc3 {[%emt 0:02:41]} Qxc3 {[%emt 0:00:08]} 30. Nb5 {[%emt 0:00:03]} Qf6+ {[%emt 0:00:38]} 31. Kg1 {[%emt 0:00:15]} Nf5 {[%emt 0:02:39]} 32. Bf2 {[%emt 0:01:04]} Rxe4 {[%emt 0:02:22]} 33. Qd5 {[%emt 0:00:02]} Re8 {[%emt 0:00:49]} 34. g4 {[%emt 0:01:42]} Ne3 {[%emt 0:01:24]} 35. Qc6 {[%emt 0:00:25]} Re5 {[%emt 0:01:26]} 36. Nxd6 {[%emt 0:01:51]} Nxf1 {[%emt 0:00:46]} 37. Bd4 {[%emt 0:00:35]} Nxh2 {[%emt 0:00:59]} 38. Qa8+ {[%emt 0:03:01]} Bf8 {[%emt 0:00:11]} 39. Ne8 {[%emt 0:01:13]} Re1+ {[%emt 0:01:25]} 40. Kxh2 {[%emt 0:00:21]} Qh4+ {[%emt 0:00:21]} 41. Kg2 {[%emt 0:00:22]} Qh1+ {[%emt 0:00:10]} 42. Kg3 {[%emt 0:00:21]} Bd6+ {[%emt 0:00:26]} 0-1

[Event "25th Abu Dhabi Open 2018"]
[Site "Abu Dhabi"]
[Date "2018.08.08"]
[Round "2"]
[White "Lacap, Louie"]
[Black "Mustafayev, Farid"]
[Result "1/2-1/2"]
[ECO "D20"]
[WhiteElo "1764"]
[BlackElo "2127"]
[Annotator "NA"]
[PlyCount "36"]
[EventDate "2018.08.05"]
[EventType "swiss"]
[EventCountry "UAE"]
[SourceTitle "playchess.com"]
[Source "ChessBase"]
[SourceQuality "1"]
[TimeControl "5400+30"]

1. d4 {[%emt 0:02:47]} d5 {[%emt 0:00:00]} 2. c4 {[%emt 0:00:18]} dxc4 {[%emt 0:00:00]} 3. Nc3 {[%emt 0:00:27]} Nf6 {[%emt 0:00:00]} 4. e3 {[%emt 0:00:34]} e6 {[%emt 0:00:05]} 5. Bxc4 {[%emt 0:00:19]} a6 {[%emt 0:00:12]} 6. Nf3 {[%emt 0:02:00]} c5 {[%emt 0:00:12]} 7. O-O {[%emt 0:00:33]} Qc7 {[%emt 0:00:08]} 8. Bd3 {[%emt 0:07:35]} Be7 {[%emt 0:01:31]} 9. a4 {[%emt 0:01:08]} O-O {[%emt 0:00:21]} 10. Qe2 {[%emt 0:02:55]} Nc6 {[%emt 0:02:34]} 11. Rd1 {[%emt 0:04:04]} b6 {[%emt 0:00:41]} 12. Ne4 {[%emt 0:01:05]} Bb7 {[%emt 0:06:19]} 13. dxc5 {[%emt 0:02:16]} bxc5 {[%emt 0:00:16]} 14. Bd2 {[%emt 0:02:55]} Nb4 {[%emt 0:04:38]} 15. Nxf6+ {[%emt 0:05:15]} Bxf6 {[%emt 0:00:26]} 16. Bc3 {[%emt 0:00:14]} Bxc3 {[%emt 0:01:33]} 17. bxc3 {[%emt 0:01:15]} Nxd3 {[%emt 0:00:07]} 18. Rxd3 {[%emt 0:01:30]} Bc6 {[%emt 0:01:57]} 1/2-1/2

[Event "25th Abu Dhabi Open 2018"]
[Site "Abu Dhabi"]
[Date "2018.08.11"]
[Round "5"]
[White "Haase, Pavel"]
[Black "Sadeem Lodhi"]
[Result "1-0"]
[ECO "D05"]
[WhiteElo "2177"]
[BlackElo "1831"]
[Annotator "NA"]
[PlyCount "47"]
[EventDate "2018.08.05"]
[EventType "swiss"]
[EventCountry "UAE"]
[SourceTitle "playchess.com"]
[Source "ChessBase"]
[SourceQuality "1"]
[TimeControl "5400+30"]

1. Nf3 c5 2. e3 Nf6 3. d4 e6 4. Bd3 d5 5. c3 Nc6 6. O-O Be7 7. Nbd2 O-O 8. dxc5 Bxc5 9. e4 Qc7 10. exd5 exd5 11. h3 Re8 12. Nb3 Bb6 13. Nbd4 Ne4 14. Be3 Bd7 15. Qc2 Rac8 16. Rad1 a6 17. Qb3 Ne7 18. Bxe4 dxe4 19. Ng5 Rf8 20. Nge6 Bxe6 21. Nxe6 Qe5 22. Nxf8 Bxe3 23. fxe3 Rxf8 24. Qxf7+ 1-0

[Event "25th Abu Dhabi Open 2018"]
[Site "Abu Dhabi"]
[Date "2018.08.11"]
[Round "5"]
[White "Haase, Pavel"]
[Black "Sadeem Lodhi"]
[Result "*"]
[ECO "A04"]
[WhiteElo "2177"]
[BlackElo "1831"]
[Annotator "NA"]
[PlyCount "33"]
[EventDate "2018.08.05"]
[EventType "swiss"]
[EventCountry "UAE"]
[SourceTitle "playchess.com"]
[Source "ChessBase"]
[SourceQuality "1"]
[TimeControl "5400+30"]

1. Nf3 {[%emt 0:00:00]} c5 {[%emt 0:00:53]} 2. e3 {[%emt 0:00:17]} Nf6 {[%emt 0:00:38]} 3. d4 {[%emt 0:01:04]} e6 {[%emt 0:00:08]} 4. Bd3 {[%emt 0:01:34]} d5 {[%emt 0:02:11]} 5. c3 {[%emt 0:04:33]} Nc6 {[%emt 0:02:30]} 6. O-O {[%emt 0:01:56]} Bd6 {[%emt 0:00:45]} 7. Nbd2 {[%emt 0:06:48]} O-O {[%emt 0:05:45]} 8. dxc5 {[%emt 0:07:35]} Bxc5 {[%emt 0:00:11]} 9. e4 {[%emt 0:01:55]} Qc7 {[%emt 0:09:51]} 10. exd5 {[%emt 0:10:30]} exd5 {[%emt 0:00:33]} 11. h3 {[%emt 0:05:26]} Re8 {[%emt 0:01:25]} 12. Nb3 {[%emt 0:02:27]} Bb6 {[%emt 0:01:05]} 13. Nbd4 {[%emt 0:04:35]} Ne4 {[%emt 0:03:32]} 14. Be3 {[%emt 0:06:54]} Bd7 {[%emt 0:08:56]} 15. Qc2 {[%emt 0:10:39]} Rac8 {[%emt 0:06:35]} 16. Rad1 {[%emt 0:06:03]} a6 {[%emt 0:03:01]} 17. Qb3 {[%emt 0:03:54]} *

[Event "25th Abu Dhabi Open 2018"]
[Site "Abu Dhabi"]
[Date "2018.08.11"]
[Round "5"]
[White "Ammar, Sedrani"]
[Black "Al Saleh, Mohammad"]
[Result "0-1"]
[ECO "A43"]
[WhiteElo "2109"]
[BlackElo "2012"]
[Annotator "NA"]
[PlyCount "114"]
[EventDate "2018.08.05"]
[EventType "swiss"]
[EventCountry "UAE"]
[SourceTitle "playchess.com"]
[Source "ChessBase"]
[SourceQuality "1"]
[TimeControl "5400+30"]

1. d4 {[%emt 0:00:27]} c5 {[%emt 0:00:00]} 2. d5 {[%emt 0:00:07]} e6 {[%emt 0:00:33]} 3. e4 {[%emt 0:00:15]} d6 {[%emt 0:07:56]} 4. Nc3 {[%emt 0:00:42]} e5 {[%emt 0:01:34]} 5. Bb5+ {[%emt 0:00:24]} Nd7 {[%emt 0:00:33]} 6. a4 {[%emt 0:00:10]} Be7 {[%emt 0:01:12]} 7. Nf3 {[%emt 0:00:16]} Ngf6 {[%emt 0:01:23]} 8. O-O {[%emt 0:00:26]} a6 {[%emt 0:01:24]} 9. Be2 {[%emt 0:00:07]} b6 {[%emt 0:03:15]} 10. Nd2 {[%emt 0:02:42]} Nf8 {[%emt 0:02:07]} 11. Nc4 {[%emt 0:00:31]} Ng6 {[%emt 0:01:21]} 12. h3 {[%emt 0:03:34]} Rb8 {[%emt 0:02:04]} 13. f4 {[%emt 0:16:07]} exf4 {[%emt 0:01:53]} 14. Bxf4 {[%emt 0:00:24]} Nxf4 {[%emt 0:00:46]} 15. Rxf4 {[%emt 0:00:07]} Nd7 {[%emt 0:01:28]} 16. Qe1 {[%emt 0:02:01]} O-O {[%emt 0:01:35]} 17. Qg3 {[%emt 0:06:14]} Bf6 {[%emt 0:04:15]} 18. Raf1 {[%emt 0:09:21]} Bd4+ {[%emt 0:03:14]} 19. Kh1 {[%emt 0:00:07]} Ne5 {[%emt 0:04:27]} 20. Nd2 {[%emt 0:21:22]} Ng6 {[%emt 0:02:58]} 21. R4f3 {[%emt 0:00:10]} Be5 {[%emt 0:00:41]} 22. Qe1 {[%emt 0:00:24]} Qe8 {[%emt 0:07:54]} 23. Nc4 {[%emt 0:07:28]} b5 {[%emt 0:00:17]} 24. axb5 {[%emt 0:00:56]} axb5 {[%emt 0:00:03]} 25. Nxb5 {[%emt 0:03:27]} Rxb5 {[%emt 0:00:46]} 26. Nxe5 {[%emt 0:00:03]} Nxe5 {[%emt 0:00:26]} 27. Bxb5 {[%emt 0:00:04]} Qxb5 {[%emt 0:01:57]} 28. Rb3 {[%emt 0:00:35]} Qa6 {[%emt 0:02:58]} 29. Ra3 {[%emt 0:04:42]} Qb6 {[%emt 0:01:09]} 30. Rb3 {[%emt 0:00:08]} Qc7 {[%emt 0:01:19]} 31. Rg3 {[%emt 0:00:38]} Qe7 {[%emt 0:02:01]} 32. b3 {[%emt 0:01:46]} Bd7 33. Qc1 {[%emt 0:02:40]} Ng6 {[%emt 0:04:09]} 34. Re3 {[%emt 0:01:24]} Qg5 {[%emt 0:02:45]} 35. Ree1 {[%emt 0:01:46]} Qe5 {[%emt 0:01:12]} 36. Qa1 {[%emt 0:00:24]} Qg3 {[%emt 0:00:54]} 37. Rf3 {[%emt 0:01:10]} Qh4 {[%emt 0:00:31]} 38. Rfe3 {[%emt 0:01:48]} Ne5 {[%emt 0:01:04]} 39. Qa6 {[%emt 0:00:57]} Qh6 {[%emt 0:04:57]} 40. Kg1 {[%emt 0:00:53]} Qf6 {[%emt 0:02:16]} 41. Qb7 {[%emt 0:01:07]} h6 {[%emt 0:01:00]} 42. c3 {[%emt 0:01:02]} Qd8 {[%emt 0:06:50]} 43. b4 {[%emt 0:02:00]} c4 {[%emt 0:01:13]} 44. Ra1 {[%emt 0:02:04]} Qg5 {[%emt 0:02:02]} 45. Rae1 {[%emt 0:02:50]} f5 {[%emt 0:04:18]} 46. exf5 Qxf5 {[%emt 0:01:46]} 47. b5 {[%emt 0:02:36]} Qf2+ {[%emt 0:01:07]} 48. Kh1 {[%emt 0:00:50]} Kh7 {[%emt 0:05:31]} 49. R3e2 {[%emt 0:00:59]} Qg3 {[%emt 0:01:18]} 50. Re3 {[%emt 0:00:39]} Nf3 51. gxf3 {[%emt 0:00:16]} Qxh3+ {[%emt 0:01:25]} 52. Kg1 {[%emt 0:00:08]} Rf6 {[%emt 0:03:23]} 53. R3e2 {[%emt 0:03:57]} Qg3+ {[%emt 0:01:00]} 54. Kh1 {[%emt 0:00:18]} Rf4 {[%emt 0:00:57]} 55. Re4 {[%emt 0:00:41]} Qxf3+ {[%emt 0:00:27]} 56. Kg1 {[%emt 0:00:07]} Qg3+ {[%emt 0:00:46]} 57. Kh1 {[%emt 0:00:07]} Rf2 {[%emt 0:01:04]} 0-1

[Event "25th Abu Dhabi Open 2018"]
[Site "Abu Dhabi"]
[Date "2018.08.11"]
[Round "5"]
[White "Loay, Sameer"]
[Black "Salem, Ahmed Salem"]
[Result "1-0"]
[ECO "A05"]
[WhiteElo "2043"]
[BlackElo "1977"]
[Annotator "NA"]
[PlyCount "87"]
[EventDate "2018.08.05"]
[EventType "swiss"]
[EventCountry "UAE"]
[SourceTitle "playchess.com"]
[Source "ChessBase"]
[SourceQuality "1"]
[TimeControl "5400+30"]

1. Nf3 Nf6 2. g3 d5 3. Bg2 c5 4. O-O Nc6 5. d4 Bf5 6. c4 dxc4 7. Qa4 Qd7 8. dxc5 Ne5 9. Nc3 Qxa4 10. Nxa4 Nxf3+ 11. Bxf3 Be4 12. Bxe4 Nxe4 13. Be3 e6 14. Rac1 {[%emt 0:39:06]} Rc8 {[%emt 0:35:01]} 15. Rxc4 {[%emt 0:03:09]} Nd6 {[%emt 0:00:36]} 16. Rcc1 {[%emt 0:00:07]} Nf5 {[%emt 0:00:04]} 17. Bd2 {[%emt 0:06:12]} Be7 {[%emt 0:00:53]} 18. Bc3 {[%emt 0:00:47]} O-O {[%emt 0:00:22]} 19. e4 {[%emt 0:00:10]} Nh6 {[%emt 0:00:26]} 20. Be5 {[%emt 0:01:24]} Rfd8 {[%emt 0:01:21]} 21. Bd6 {[%emt 0:03:13]} Bxd6 {[%emt 0:02:13]} 22. cxd6 {[%emt 0:00:01]} Rxc1 {[%emt 0:00:58]} 23. Rxc1 {[%emt 0:00:05]} f6 {[%emt 0:00:03]} 24. Rc7 {[%emt 0:01:29]} b5 {[%emt 0:03:29]} 25. Nc5 {[%emt 0:00:13]} Rxd6 {[%emt 0:00:05]} 26. Rxa7 {[%emt 0:00:05]} Rd1+ {[%emt 0:03:28]} 27. Kg2 {[%emt 0:00:04]} Rd2 {[%emt 0:00:17]} 28. Nxe6 {[%emt 0:00:27]} Rxb2 {[%emt 0:00:12]} 29. Rxg7+ {[%emt 0:00:34]} Kh8 {[%emt 0:00:01]} 30. Ra7 {[%emt 0:00:54]} Kg8 {[%emt 0:00:40]} 31. h3 {[%emt 0:05:58]} f5 {[%emt 0:00:07]} 32. exf5 {[%emt 0:03:12]} Nxf5 {[%emt 0:00:02]} 33. g4 {[%emt 0:01:16]} Ne3+ {[%emt 0:00:05]} 34. Kf3 {[%emt 0:00:50]} Nd1 {[%emt 0:00:08]} 35. Rg7+ {[%emt 0:00:11]} Kh8 {[%emt 0:00:21]} 36. Rd7 {[%emt 0:00:01]} Rxf2+ {[%emt 0:01:59]} 37. Kg3 {[%emt 0:00:01]} Kg8 {[%emt 0:00:20]} 38. Rxd1 {[%emt 0:01:06]} Rxa2 {[%emt 0:00:02]} 39. Rd7 {[%emt 0:00:33]} Re2 {[%emt 0:01:03]} 40. Nf4 {[%emt 0:02:40]} Rc2 {[%emt 0:00:43]} 41. Rb7 {[%emt 0:00:31]} Rc3+ {[%emt 0:00:06]} 42. Kh4 {[%emt 0:00:09]} Rc4 {[%emt 0:00:02]} 43. Ne6 {[%emt 0:00:30]} Re4 {[%emt 0:03:48]} 44. Rb8+ {[%emt 0:00:11]} 1-0

[Event "25th Abu Dhabi Open 2018"]
[Site "Abu Dhabi"]
[Date "2018.08.11"]
[Round "5"]
[White "Soham Datar"]
[Black "Hallaeva, Bahar"]
[Result "1-0"]
[ECO "A05"]
[WhiteElo "2030"]
[BlackElo "2098"]
[Annotator "NA"]
[PlyCount "91"]
[EventDate "2018.08.05"]
[EventType "swiss"]
[EventCountry "UAE"]
[SourceTitle "playchess.com"]
[Source "ChessBase"]
[SourceQuality "1"]
[TimeControl "5400+30"]

1. Nf3 Nf6 2. c4 b6 3. g3 Bb7 4. Bg2 e6 5. O-O Be7 6. d4 O-O 7. Re1 Qc8 8. Nc3 Ne4 9. Bd2 Nxc3 10. Bxc3 Be4 11. d5 exd5 12. cxd5 Re8 13. Nd4 Bxg2 14. Kxg2 d6 15. e4 Bf6 16. Rc1 Nd7 17. Nf5 Qd8 18. Bxf6 Nxf6 19. Qd4 a5 20. f3 Ra7 21. Rc3 g6 22. Nh6+ Kg7 23. Ng4 h5 24. Nf2 Kh7 25. h3 Nd7 26. Rec1 Ne5 27. f4 Nd7 28. g4 h4 29. g5 f5 30. Re3 Ra8 31. exf5 gxf5 32. Rxe8 Qxe8 33. Rxc7 Kg6 34. Kf1 Qf7 35. Nd1 Re8 36. Nc3 Qe7 37. Qf2 Qd8 38. Rc6 Nc5 39. Qxh4 Rh8 40. Qg3 Rh7 41. h4 Re7 42. h5+ Kxh5 43. Qh3+ Kg6 44. Qh6+ Kf7 45. Rxd6 Qg8 46. Qh5+ 1-0

[Event "25th Abu Dhabi Open 2018"]
[Site "Abu Dhabi"]
[Date "2018.08.11"]
[Round "5"]
[White "Bauyrzhan, Arnash"]
[Black "Ovezdurdiyeva, Jemal"]
[Result "1/2-1/2"]
[ECO "B51"]
[WhiteElo "2007"]
[BlackElo "2041"]
[Annotator "NA"]
[PlyCount "136"]
[EventDate "2018.08.05"]
[EventType "swiss"]
[EventCountry "UAE"]
[SourceTitle "playchess.com"]
[Source "ChessBase"]
[SourceQuality "1"]
[TimeControl "5400+30"]

1. e4 c5 2. Nf3 d6 3. Bb5+ Nd7 4. O-O a6 5. Bd3 Ngf6 6. c3 b5 7. Bc2 e5 8. d4 Be7 9. Re1 O-O 10. Nbd2 Bb7 11. Nf1 Re8 12. Ng3 Bf8 13. h3 Qc7 14. Bg5 h6 15. Bd2 exd4 16. cxd4 cxd4 17. Nxd4 Ne5 18. Ndf5 d5 19. Rc1 Qd7 20. exd5 Nxd5 21. Rxe5 Rxe5 22. Bc3 Qe6 23. Bxe5 Qxe5 24. Qg4 g6 25. Bb3 Kh7 26. Nh4 Nf6 27. Qd1 Kg7 28. Nf3 Qf4 29. Ne2 Qd6 30. Qxd6 Bxd6 31. Ned4 Ne4 32. Kf1 Rd8 33. Rd1 Rc8 34. Nh4 Bc5 35. Nhf3 Kf6 36. Rc1 Rd8 37. Rd1 Rd6 38. Bc2 Kg7 39. Bxe4 Bxe4 40. Ke2 f5 41. Rd2 Bb4 42. Rd1 Kf6 43. Rc1 g5 44. g4 f4 45. Rc8 Bd5 46. Kf1 Bxa2 47. Rh8 Kg7 48. Ra8 Bc4+ 49. Kg2 Bd3 50. Rc8 Be4 51. Nf5+ Bxf5 52. gxf5 Ba5 53. h4 Bd8 54. hxg5 hxg5 55. Kh3 Bf6 56. Rc7+ Kh6 57. Kg4 a5 58. Rb7 b4 59. Ra7 Rd1 60. Rxa5 Rf1 61. Ra6 Kg7 62. Kh5 Rh1+ 63. Kg4 Rf1 64. Kh5 Rh1+ 65. Kg4 Rf1 66. Kh5 Rh1+ 67. Kg4 Rg1+ 68. Kh5 Rh1+ 1/2-1/2

[Event "25th Abu Dhabi Open 2018"]
[Site "Abu Dhabi"]
[Date "2018.08.11"]
[Round "5"]
[White "Sanskriti Goyal"]
[Black "Ahmed, Fareed"]
[Result "1-0"]
[ECO "E42"]
[WhiteElo "1924"]
[BlackElo "2025"]
[Annotator "NA"]
[PlyCount "129"]
[EventDate "2018.08.05"]
[EventType "swiss"]
[EventCountry "UAE"]
[SourceTitle "playchess.com"]
[Source "ChessBase"]
[SourceQuality "1"]
[TimeControl "5400+30"]

1. d4 {[%emt 0:00:00]} Nf6 {[%emt 0:07:28]} 2. c4 {[%emt 0:00:14]} e6 {[%emt 0:00:05]} 3. Nc3 {[%emt 0:00:23]} Bb4 {[%emt 0:00:02]} 4. e3 {[%emt 0:00:07]} c5 {[%emt 0:00:04]} 5. Nge2 {[%emt 0:01:09]} d5 {[%emt 0:00:02]} 6. a3 {[%emt 0:00:15]} Bxc3+ {[%emt 0:00:05]} 7. Nxc3 {[%emt 0:00:06]} cxd4 {[%emt 0:00:07]} 8. exd4 {[%emt 0:00:07]} dxc4 {[%emt 0:00:03]} 9. Bxc4 {[%emt 0:01:16]} Nc6 {[%emt 0:00:01]} 10. Be3 {[%emt 0:01:09]} O-O {[%emt 0:01:11]} 11. O-O {[%emt 0:02:59]} h6 {[%emt 0:00:10]} 12. Qd3 {[%emt 0:12:06]} b6 {[%emt 0:02:16]} 13. Rfd1 {[%emt 0:12:19]} Bb7 {[%emt 0:00:47]} 14. Ba6 {[%emt 0:02:21]} Bxa6 {[%emt 0:05:38]} 15. Qxa6 {[%emt 0:00:03]} Qd7 {[%emt 0:00:22]} 16. Rac1 {[%emt 0:07:58]} Rfd8 {[%emt 0:02:39]} 17. h3 Nd5 {[%emt 0:02:43]} 18. Nxd5 {[%emt 0:18:57]} Qxd5 {[%emt 0:00:20]} 19. Qb7 {[%emt 0:04:11]} Na5 {[%emt 0:04:33]} 20. Qc7 {[%emt 0:08:24]} Rd7 {[%emt 0:00:06]} 21. Qg3 Kh7 22. Rc7 {[%emt 0:04:19]} Nc6 {[%emt 0:18:29]} 23. Rc1 {[%emt 0:08:58]} Nxd4 {[%emt 0:24:24]} 24. Bxd4 {[%emt 0:00:30]} Qxd4 {[%emt 0:00:30]} 25. Rxd7 {[%emt 0:00:30]} Qxd7 {[%emt 0:00:30]} 26. Rc7 {[%emt 0:00:30]} Qd1+ {[%emt 0:00:30]} 27. Kh2 {[%emt 0:00:30]} Qh5 28. Qf4 f5 {[%emt 0:01:00]} 29. Qe5 {[%emt 0:05:27]} Qg5 {[%emt 0:00:31]} 30. f4 {[%emt 0:03:14]} Qg6 {[%emt 0:00:18]} 31. Re7 {[%emt 0:01:49]} Re8 {[%emt 0:01:20]} 32. Rxa7 {[%emt 0:00:13]} Rd8 {[%emt 0:04:09]} 33. Qc3 {[%emt 0:00:23]} h5 {[%emt 0:01:12]} 34. Rb7 {[%emt 0:02:38]} Rd6 {[%emt 0:12:42]} 35. b4 {[%emt 0:00:12]} Qh6 {[%emt 0:03:59]} 36. Qe3 {[%emt 0:00:10]} h4 {[%emt 0:02:22]} 37. a4 {[%emt 0:00:08]} Qg6 {[%emt 0:02:16]} 38. b5 {[%emt 0:00:13]} Qg3+ {[%emt 0:03:49]} 39. Qxg3 {[%emt 0:00:30]} hxg3+ {[%emt 0:00:30]} 40. Kxg3 {[%emt 0:00:00]} Rd3+ {[%emt 0:00:00]} 41. Kh2 {[%emt 0:00:57]} Rd4 {[%emt 0:01:36]} 42. Rxb6 {[%emt 0:00:39]} Rxa4 {[%emt 0:00:03]} 43. Kg3 {[%emt 0:01:37]} Ra3+ {[%emt 0:01:08]} 44. Kh4 {[%emt 0:00:43]} Ra2 {[%emt 0:00:17]} 45. g4 {[%emt 0:01:55]} fxg4 {[%emt 0:01:06]} 46. hxg4 Rb2 {[%emt 0:00:29]} 47. Kg5 {[%emt 0:00:54]} Rb4 {[%emt 0:00:27]} 48. Rb7 {[%emt 0:00:47]} Rb1 {[%emt 0:00:17]} 49. f5 {[%emt 0:01:00]} exf5 {[%emt 0:00:04]} 50. gxf5 {[%emt 0:00:12]} Kg8 {[%emt 0:01:24]} 51. b6 {[%emt 0:01:08]} Rb2 52. Rb8+ Kf7 {[%emt 0:01:23]} 53. Rb7+ {[%emt 0:01:12]} Kf8 {[%emt 0:00:25]} 54. Kf4 {[%emt 0:01:03]} Rf2+ {[%emt 0:00:32]} 55. Ke5 {[%emt 0:00:10]} Re2+ {[%emt 0:00:11]} 56. Kd6 {[%emt 0:00:09]} Rd2+ {[%emt 0:00:07]} 57. Kc7 {[%emt 0:00:36]} Kf7 {[%emt 0:00:36]} 58. Kc8+ {[%emt 0:00:39]} Kf6 {[%emt 0:00:55]} 59. Rc7 {[%emt 0:00:10]} Rh2 {[%emt 0:00:31]} 60. b7 {[%emt 0:00:09]} Rh8+ {[%emt 0:00:11]} 61. Kd7 {[%emt 0:00:04]} Rb8 {[%emt 0:00:56]} 62. Kc6 {[%emt 0:00:07]} Kxf5 {[%emt 0:00:13]} 63. Rxg7 {[%emt 0:00:06]} Kf6 {[%emt 0:00:27]} 64. Rc7 {[%emt 0:00:06]} Re8 {[%emt 0:00:12]} 65. Rc8 {[%emt 0:00:29]} 1-0

[Event "25th Abu Dhabi Open 2018"]
[Site "Abu Dhabi"]
[Date "2018.08.11"]
[Round "5"]
[White "Aditya Varun Gampa"]
[Black "Gandhi, Anish"]
[Result "0-1"]
[ECO "B90"]
[WhiteElo "1874"]
[BlackElo "2016"]
[Annotator "NA"]
[PlyCount "100"]
[EventDate "2018.08.05"]
[EventType "swiss"]
[EventCountry "UAE"]
[SourceTitle "playchess.com"]
[Source "ChessBase"]
[SourceQuality "1"]
[TimeControl "5400+30"]

1. e4 {[%emt 0:01:13]} c5 {[%emt 0:00:00]} 2. Nf3 {[%emt 0:00:04]} d6 {[%emt 0:00:00]} 3. Nc3 {[%emt 0:01:40]} Nf6 {[%emt 0:00:00]} 4. d4 {[%emt 0:00:18]} cxd4 5. Nxd4 {[%emt 0:02:23]} a6 {[%emt 0:00:04]} 6. h3 {[%emt 0:00:05]} e5 {[%emt 0:00:17]} 7. Nde2 {[%emt 0:00:03]} h5 {[%emt 0:00:28]} 8. Bg5 {[%emt 0:00:11]} Be6 {[%emt 0:03:13]} 9. Bxf6 {[%emt 0:00:28]} Qxf6 {[%emt 0:00:23]} 10. Nd5 {[%emt 0:00:11]} Qd8 {[%emt 0:00:12]} 11. Qd3 {[%emt 0:03:17]} Nc6 {[%emt 0:01:42]} 12. O-O-O {[%emt 0:01:01]} g6 {[%emt 0:02:14]} 13. Nec3 {[%emt 0:02:15]} Bh6+ {[%emt 0:02:08]} 14. Kb1 {[%emt 0:00:02]} Rc8 {[%emt 0:01:06]} 15. Be2 {[%emt 0:00:55]} b5 {[%emt 0:01:32]} 16. a3 {[%emt 0:00:55]} O-O {[%emt 0:01:07]} 17. g4 {[%emt 0:01:46]} h4 {[%emt 0:02:44]} 18. Rhg1 {[%emt 0:03:38]} Bg5 {[%emt 0:08:40]} 19. Rdf1 {[%emt 0:01:33]} Nd4 {[%emt 0:06:10]} 20. f4 {[%emt 0:02:05]} Bxd5 {[%emt 0:01:34]} 21. Nxd5 {[%emt 0:03:59]} Nxe2 {[%emt 0:00:21]} 22. Qxe2 {[%emt 0:00:24]} exf4 {[%emt 0:00:04]} 23. Nxf4 {[%emt 0:00:18]} Qe7 {[%emt 0:00:32]} 24. Nd5 {[%emt 0:02:14]} Qe5 {[%emt 0:00:30]} 25. Qf3 {[%emt 0:10:23]} Kg7 {[%emt 0:03:28]} 26. Rd1 {[%emt 0:04:07]} Rc4 {[%emt 0:02:53]} 27. Rge1 {[%emt 0:02:02]} Rfc8 {[%emt 0:05:08]} 28. Re2 {[%emt 0:01:57]} Re8 {[%emt 0:04:25]} 29. Rf1 {[%emt 0:01:47]} f6 {[%emt 0:01:59]} 30. Rfe1 {[%emt 0:01:05]} Qg3 {[%emt 0:03:22]} 31. Qd3 {[%emt 0:04:48]} Qxd3 {[%emt 0:08:59]} 32. cxd3 {[%emt 0:00:12]} Rd4 {[%emt 0:01:15]} 33. Kc2 {[%emt 0:01:08]} Rc8+ {[%emt 0:01:02]} 34. Nc3 {[%emt 0:03:45]} a5 {[%emt 0:00:19]} 35. Kb1 {[%emt 0:02:06]} b4 {[%emt 0:08:05]} 36. Nb5 {[%emt 0:00:30]} Rxd3 {[%emt 0:00:30]} 37. Rc2 {[%emt 0:00:30]} Rxc2 {[%emt 0:00:30]} 38. Kxc2 {[%emt 0:00:30]} Rxh3 {[%emt 0:00:30]} 39. axb4 {[%emt 0:00:30]} axb4 {[%emt 0:00:30]} 40. Nxd6 {[%emt 0:00:30]} b3+ 41. Kb1 Rg3 {[%emt 0:01:00]} 42. Nb5 {[%emt 0:17:53]} h3 {[%emt 0:01:11]} 43. e5 fxe5 {[%emt 0:00:18]} 44. Nc3 {[%emt 0:01:04]} h2 {[%emt 0:00:15]} 45. Ne2 {[%emt 0:00:10]} Re3 {[%emt 0:00:09]} 46. Ka1 {[%emt 0:01:02]} Rxe2 {[%emt 0:00:24]} 47. Rb1 {[%emt 0:00:26]} Rg2 {[%emt 0:00:10]} 48. Rc1 {[%emt 0:00:15]} Rg1 {[%emt 0:00:09]} 49. Rb1 {[%emt 0:00:32]} Rxb1+ 50. Kxb1 {[%emt 0:00:05]} h1=R# {[%emt 0:00:13]} 0-1